bitfinex-derivatives/quotes_BTCF0:USTF0_20251228
["timestamp","ask_amount","ask_price","bid_price","bid_amount"]
[1766930598161,0.011368,88028.0,88011.0,0.09664]
[1766930599363,0.011368,88028.0,88011.0,0.00017045]
[1766930599956,0.25356,88032.0,88017.0,0.0113693]
[1766930600151,0.25356,88032.0,88019.0,0.011369]
[1766930600346,0.04954,88032.0,88021.0,0.0113688]
[1766930600550,0.09681045,88033.0,88012.0,0.11361118]
[1766930600755,0.09681045,88033.0,88011.0,0.00017045]
[1766930601161,0.09681045,88033.0,88012.0,0.11360215]
[1766930602964,0.09681045,88033.0,88016.0,0.0113693]
[1766930603258,0.09681045,88033.0,88016.0,0.0682893]
[1766930608268,0.09681045,88033.0,88016.0,0.05692]
[1766930608665,0.09681045,88033.0,88013.0,0.05692]
[1766930610169,0.0113674,88032.0,88013.0,0.05692]
[1766930614778,0.0113674,88032.0,88011.0,0.00017045]
[1766930614969,0.09681045,88033.0,88011.0,0.00017045]
[1766930616278,0.09681045,88033.0,88012.0,0.0113699]
[1766930619078,0.09681045,88033.0,88014.0,0.0113696]
[1766930623978,0.0113675,88032.0,88011.0,0.00017045]
[1766930635186,0.05692,88031.0,88011.0,0.00017045]
[1766930640693,0.0113677,88030.0,88011.0,0.00017045]
[1766930641290,0.02402371,88029.0,88011.0,0.00017045]
[1766930641491,0.02402371,88028.0,88011.0,0.00017045]
[1766930641692,0.02402371,88027.0,88011.0,0.00017045]
[1766930641993,0.011368,88028.0,88008.0,0.05692]
[1766930642194,0.02402311,88027.0,88008.0,0.05692]
[1766930642393,0.011368,88028.0,88008.0,0.05692]
[1766930642589,0.12066254,88027.0,88008.0,0.05692]
[1766930642785,0.12066254,88027.0,87999.0,0.09664]
[1766930642786,0.02402284,88026.0,87999.0,0.09664]
[1766930642988,0.02402284,88026.0,87998.0,0.0613522]
[1766930642989,0.0113687,88022.0,88000.0,0.05692]
[1766930643191,0.08094284,88021.0,88000.0,0.05692]
[1766930643390,0.05692,88021.0,88000.0,0.05692]
[1766930643991,0.05692,88021.0,88002.0,0.00017045]
[1766930644592,0.02401043,88020.0,88002.0,0.00017045]
[1766930644789,0.05692,88021.0,88002.0,0.00017045]
[1766930645098,0.02401043,88020.0,88004.0,0.0113709]
[1766930645293,0.05692,88021.0,88004.0,0.0113709]
[1766930645496,0.02400695,88020.0,88004.0,0.0113709]
[1766930645694,0.05692,88021.0,88004.0,0.0113709]
[1766930645997,0.02400695,88020.0,88006.0,0.0113707]
[1766930646193,0.05692,88021.0,88006.0,0.0113707]
[1766930646394,0.02400419,88020.0,88006.0,0.0113707]
[1766930646593,0.05692,88021.0,88006.0,0.0113707]
[1766930646790,0.05692,88021.0,88002.0,0.00017045]
[1766930646791,0.02400419,88020.0,88010.0,0.0113702]
[1766930646995,0.05692,88021.0,88002.0,0.00017045]
[1766930647594,0.05692,88021.0,88010.0,0.0113702]
[1766930648094,0.05692,88020.0,88019.0,0.011369]
[1766930648290,0.02341937,88020.0,88019.0,0.011369]
[1766930648594,3e-08,88043.0,88009.0,0.0113703]
[1766930648799,0.02900004,88032.0,88009.0,0.0113703]
[1766930649000,0.02872,88031.0,88010.0,0.11360925]
[1766930649298,0.02844,88030.0,88010.0,0.11360925]
[1766930649497,5e-08,88033.0,88026.0,0.0113681]
[1766930649696,0.03568,88032.0,88029.0,0.0113677]
[1766930649902,0.05692,88033.0,88029.0,0.0113677]
[1766930650290,0.05692,88033.0,88021.0,0.00017045]
[1766930650494,0.05692,88033.0,88031.0,0.0113675]
[1766930650798,5e-08,88034.0,88031.0,0.0113675]
[1766930651001,5e-08,88034.0,88021.0,0.00017045]
[1766930651298,5e-08,88034.0,88029.0,0.0113677]
[1766930651493,0.00017045,88041.0,88031.0,0.0113675]
[1766930651699,0.15356,88040.0,88021.0,0.00017045]
[1766930652098,0.00017045,88041.0,88021.0,0.00017045]
[1766930652298,0.15356,88040.0,88028.0,0.0113678]
[1766930652502,0.01306515,88040.0,88021.0,0.00017045]
[1766930652700,0.05692,88039.0,88021.0,0.00017045]
[1766930652900,0.05692,88039.0,88027.0,0.011368]
[1766930653400,0.05692,88039.0,88026.0,0.0113681]
[1766930654105,0.05692,88039.0,88028.0,0.0113679]
[1766930655207,0.05692,88039.0,88021.0,0.00017045]
[1766930655406,0.05692,88039.0,88027.0,0.011368]
[1766930655602,0.05692,88039.0,88021.0,0.00017045]
[1766930658211,0.05692,88039.0,88026.0,0.0113682]
[1766930661508,0.05692,88039.0,88021.0,0.00017045]
[1766930661709,0.05692,88039.0,88022.0,0.0113686]
[1766930662413,0.05692,88039.0,88021.0,0.00017045]
[1766930662414,0.05692,88039.0,88024.0,0.0113684]
[1766930663610,0.05692,88039.0,88021.0,0.00017045]
[1766930664212,0.05692,88039.0,88024.0,0.0113684]
[1766930666817,0.02396474,88038.0,88024.0,0.0113684]
[1766930667005,0.05692,88039.0,88024.0,0.0113684]
[1766930667205,0.02396474,88038.0,88024.0,0.0113684]
[1766930667408,0.02396474,88037.0,88024.0,0.0113684]
[1766930667709,0.05692,88039.0,88024.0,0.0113684]
[1766930667909,0.02396436,88038.0,88024.0,0.0113684]
[1766930668111,0.02396436,88037.0,88024.0,0.0113684]
[1766930668410,0.05692,88039.0,88024.0,0.0113684]
[1766930668721,0.02396404,88038.0,88024.0,0.0113684]
[1766930668913,0.02396404,88037.0,88024.0,0.0113684]
[1766930669113,0.05692,88039.0,88024.0,0.0113684]
[1766930669822,0.02396334,88038.0,88024.0,0.0113684]
[1766930670021,0.02396334,88037.0,88024.0,0.0113684]
[1766930670212,0.05692,88039.0,88024.0,0.0113684]
[1766930670411,0.02396378,88038.0,88024.0,0.0113684]
[1766930670714,0.02396378,88037.0,88024.0,0.0113684]
[1766930670916,0.05692,88039.0,88024.0,0.0113684]
[1766930671118,0.02396378,88038.0,88024.0,0.0113684]
[1766930671318,0.02396378,88037.0,88024.0,0.0113684]
[1766930671619,0.05692,88039.0,88024.0,0.0113684]
[1766930671820,0.00017045,88041.0,88025.0,0.0113671]
[1766930672016,0.05709045,88041.0,88025.0,0.0113671]
[1766930674623,0.05709045,88041.0,88027.0,0.0113668]
[1766930675324,0.00017045,88041.0,88023.0,0.0113673]
[1766930676729,0.00017045,88041.0,88026.0,0.011367]
[1766930683026,0.00017045,88041.0,88021.0,0.00017045]
[1766930684128,0.01153565,88041.0,88021.0,0.00017045]
[1766930684523,0.02397496,88040.0,88021.0,0.00017045]
[1766930684724,0.01153565,88041.0,88021.0,0.00017045]
[1766930685022,0.02397496,88040.0,88021.0,0.00017045]
[1766930685222,0.01153565,88041.0,88021.0,0.00017045]
[1766930685422,0.02397498,88040.0,88021.0,0.00017045]
[1766930685722,0.01153565,88041.0,88021.0,0.00017045]
[1766930685922,0.02397498,88040.0,88021.0,0.00017045]
[1766930686123,0.01153565,88041.0,88021.0,0.00017045]
[1766930686323,0.02397498,88040.0,88021.0,0.00017045]
[1766930686627,0.01153565,88041.0,88021.0,0.00017045]
[1766930686828,0.02397508,88040.0,88021.0,0.00017045]
[1766930687031,0.01153565,88041.0,88021.0,0.00017045]
[1766930687231,0.02397508,88040.0,88021.0,0.00017045]
[1766930687431,0.01153565,88041.0,88021.0,0.00017045]
[1766930687731,0.02397531,88040.0,88021.0,0.00017045]
[1766930688032,0.01153565,88041.0,88021.0,0.00017045]
[1766930688229,0.02397531,88040.0,88021.0,0.00017045]
[1766930688430,0.00017045,88041.0,88021.0,0.00017045]
[1766930688728,0.02397558,88040.0,88021.0,0.00017045]
[1766930688929,0.00017045,88041.0,88021.0,0.00017045]
[1766930689128,0.02397558,88040.0,88021.0,0.00017045]
[1766930689331,0.00017045,88041.0,88021.0,0.00017045]
[1766930689519,0.02395861,88040.0,88021.0,0.00017045]
[1766930689722,0.00017045,88041.0,88021.0,0.00017045]
[1766930689923,0.02395861,88040.0,88021.0,0.00017045]
[1766930690123,0.00017045,88041.0,88021.0,0.00017045]
[1766930690324,0.02395861,88040.0,88021.0,0.00017045]
[1766930690618,0.00017045,88041.0,88021.0,0.00017045]
[1766930690831,0.02395917,88040.0,88021.0,0.00017045]
[1766930691032,0.00017045,88041.0,88021.0,0.00017045]
[1766930691233,0.02395917,88040.0,88021.0,0.00017045]
[1766930691430,0.00017045,88041.0,88021.0,0.00017045]
[1766930691628,0.02395988,88040.0,88021.0,0.00017045]
[1766930691830,0.00017045,88041.0,88021.0,0.00017045]
[1766930692030,0.02395988,88040.0,88021.0,0.00017045]
[1766930692235,0.00017045,88041.0,88021.0,0.00017045]
[1766930692433,0.02396082,88040.0,88021.0,0.00017045]
[1766930692636,0.00017045,88041.0,88021.0,0.00017045]
[1766930692935,0.02396082,88040.0,88021.0,0.00017045]
[1766930693128,0.00017045,88041.0,88021.0,0.00017045]
[1766930693328,0.02396082,88040.0,88021.0,0.00017045]
[1766930693534,0.00017045,88041.0,88021.0,0.00017045]
[1766930693732,0.02396198,88040.0,88021.0,0.00017045]
[1766930694036,0.00017045,88041.0,88021.0,0.00017045]
[1766930694335,0.02396225,88040.0,88021.0,0.00017045]
[1766930694536,0.00017045,88041.0,88021.0,0.00017045]
[1766930698942,0.00017045,88041.0,88023.0,0.0113674]
[1766930700436,0.00017045,88041.0,88021.0,0.00017045]
[1766930701444,0.02398595,88040.0,88021.0,0.00017045]
[1766930701645,0.00017045,88041.0,88021.0,0.00017045]
[1766930701844,0.02398595,88040.0,88021.0,0.00017045]
[1766930702044,0.00017045,88041.0,88021.0,0.00017045]
[1766930702247,0.02398577,88040.0,88021.0,0.00017045]
[1766930702448,0.00017045,88041.0,88021.0,0.00017045]
[1766930702747,0.02398576,88040.0,88021.0,0.00017045]
[1766930703041,0.00017045,88041.0,88014.0,0.06112953]
[1766930703234,0.0113654,88039.0,88015.0,0.03588]
[1766930703431,0.0113657,88037.0,88015.0,0.04188]
[1766930703634,0.0113659,88035.0,88015.0,0.03588]
[1766930703848,0.08086623,88034.0,88016.0,0.0261341]
[1766930704041,0.02398623,88033.0,88016.0,0.0261341]
[1766930704241,0.05688,88034.0,88016.0,0.00017045]
[1766930704846,0.05688,88034.0,88017.0,0.0261341]
[1766930705343,0.05688,88034.0,88016.0,0.00017045]
[1766930705534,0.05688,88034.0,88017.0,0.0261341]
[1766930706042,0.05688,88034.0,88016.0,0.00017045]
[1766930706247,0.05688,88034.0,88017.0,0.0261341]
[1766930706542,0.05692,88033.0,88017.0,0.0261341]
[1766930706846,0.05692,88039.0,88018.0,0.0830541]
[1766930707043,0.05692,88039.0,88025.0,0.0113671]
[1766930707347,0.05692,88039.0,88022.0,0.0113675]
[1766930708144,0.05692,88039.0,88018.0,0.05692]
[1766930708445,0.05692,88039.0,88024.0,0.0113672]
[1766930709152,0.05692,88039.0,88021.0,0.0113676]
[1766930710444,0.05692,88039.0,88020.0,0.0113678]
[1766930710653,0.05692,88039.0,88019.0,0.0261341]
[1766930711139,0.05692,88039.0,88018.0,0.05692]
[1766930711448,0.05692,88039.0,88019.0,0.0261341]
[1766930711950,0.05692,88039.0,88018.0,0.05692]
[1766930712249,0.05692,88039.0,88019.0,0.0261341]
[1766930712751,0.05692,88039.0,88018.0,0.0682881]
[1766930712947,0.05692,88039.0,88019.0,0.0261341]
[1766930713354,0.05692,88039.0,88020.0,0.0113678]
[1766930714247,0.05692,88040.0,88020.0,0.0113678]
[1766930714451,0.02432056,88039.0,88020.0,0.0113678]
[1766930714653,0.02432056,88038.0,88020.0,0.0113678]
[1766930714849,0.02432056,88037.0,88020.0,0.0113678]
[1766930715049,0.02432056,88036.0,88020.0,0.0113678]
[1766930715254,0.05692,88040.0,88020.0,0.0113678]
[1766930715555,0.02432075,88039.0,88020.0,0.0113678]
[1766930715754,0.02432075,88038.0,88020.0,0.0113678]
[1766930716057,0.02432075,88037.0,88020.0,0.0113678]
[1766930716249,0.02432075,88036.0,88020.0,0.0113678]
[1766930716547,0.00017045,88041.0,88020.0,0.0113678]
[1766930716750,0.02432098,88040.0,88020.0,0.0113678]
[1766930716939,0.02432098,88039.0,88020.0,0.0113678]
[1766930717139,0.02432098,88038.0,88020.0,0.0113678]
[1766930717342,0.02432098,88037.0,88020.0,0.0113678]
[1766930717539,0.02432098,88036.0,88020.0,0.0113678]
[1766930717753,0.00017045,88041.0,88020.0,0.0113678]
[1766930717953,0.02432127,88040.0,88020.0,0.0113678]
[1766930718155,0.02432127,88039.0,88020.0,0.0113678]
[1766930718352,0.02432127,88038.0,88020.0,0.0113678]
[1766930718555,0.02432127,88037.0,88020.0,0.0113678]
[1766930718855,0.02432127,88036.0,88020.0,0.0113678]
[1766930719053,0.00017045,88041.0,88020.0,0.0113678]
[1766930719352,0.02432197,88040.0,88020.0,0.0113678]
[1766930719538,0.02432197,88039.0,88020.0,0.0113678]
[1766930719738,0.02432197,88038.0,88020.0,0.0113678]
[1766930719938,0.02432197,88037.0,88020.0,0.0113678]
[1766930720142,0.02432197,88036.0,88020.0,0.0113678]
[1766930720338,0.00017045,88041.0,88020.0,0.0113678]
[1766930720553,0.02442585,88040.0,88023.0,0.0113674]
[1766930720750,0.02442585,88039.0,88023.0,0.0113674]
[1766930721055,0.02442585,88038.0,88023.0,0.0113674]
[1766930721357,0.02442585,88037.0,88023.0,0.0113674]
[1766930721649,0.02442585,88036.0,88023.0,0.0113674]
[1766930721850,0.00017045,88041.0,88023.0,0.0113674]
[1766930722043,0.02442635,88040.0,88023.0,0.0113674]
[1766930722243,0.02442635,88039.0,88023.0,0.0113674]
[1766930722446,0.02442635,88038.0,88023.0,0.0113674]
[1766930722647,0.02442635,88037.0,88023.0,0.0113674]
[1766930722848,0.02442635,88036.0,88023.0,0.0113674]
[1766930723050,0.00017045,88041.0,88023.0,0.0113674]
[1766930723250,0.02442728,88040.0,88023.0,0.0113674]
[1766930723445,0.02442728,88039.0,88023.0,0.0113674]
[1766930723647,0.02442728,88038.0,88023.0,0.0113674]
[1766930723854,0.02442728,88037.0,88023.0,0.0113674]
[1766930724053,0.02442728,88036.0,88023.0,0.0113674]
[1766930724249,0.00017045,88041.0,88023.0,0.0113674]
[1766930724450,0.02442811,88040.0,88023.0,0.0113674]
[1766930724753,0.02442811,88039.0,88023.0,0.0113674]
[1766930724952,0.02442811,88038.0,88023.0,0.0113674]
[1766930725252,0.00017045,88041.0,88023.0,0.0113674]
[1766930725551,0.02442874,88040.0,88023.0,0.0113674]
[1766930725750,0.02442874,88039.0,88023.0,0.0113674]
[1766930725948,0.02442874,88038.0,88023.0,0.0113674]
[1766930726142,0.00017045,88041.0,88023.0,0.0113674]
[1766930726341,0.02442909,88040.0,88023.0,0.0113674]
[1766930726549,0.02442909,88039.0,88023.0,0.0113674]
[1766930726747,0.02442909,88038.0,88023.0,0.0113674]
[1766930726948,0.00017045,88041.0,88023.0,0.0113674]
[1766930727148,0.02442946,88040.0,88023.0,0.0113674]
[1766930727348,0.02442946,88039.0,88023.0,0.0113674]
[1766930727548,0.02442946,88038.0,88023.0,0.0113674]
[1766930727743,0.00017045,88041.0,88023.0,0.0113674]
[1766930727949,0.02443025,88040.0,88023.0,0.0113674]
[1766930728149,0.02443025,88039.0,88023.0,0.0113674]
[1766930728357,0.02443025,88038.0,88023.0,0.0113674]
[1766930728559,0.00017045,88041.0,88023.0,0.0113674]
[1766930728858,0.02443113,88040.0,88023.0,0.0113674]
[1766930729056,0.02443113,88039.0,88023.0,0.0113674]
[1766930729261,0.02443113,88038.0,88023.0,0.0113674]
[1766930729557,0.02443113,88037.0,88023.0,0.0113674]
[1766930729757,0.00017045,88041.0,88021.0,0.09664]
[1766930729960,0.02443215,88040.0,88021.0,0.09664]
[1766930730161,0.02443215,88039.0,88022.0,0.0113675]
[1766930730457,0.02443215,88038.0,88022.0,0.0113675]
[1766930730658,0.02443215,88037.0,88022.0,0.0113675]
[1766930730957,0.00017045,88041.0,88022.0,0.0113675]
[1766930731157,0.02443301,88040.0,88022.0,0.0113675]
[1766930731360,0.02443301,88039.0,88022.0,0.0113675]
[1766930731558,0.02443301,88038.0,88022.0,0.0113675]
[1766930731860,0.02443301,88037.0,88022.0,0.0113675]
[1766930732058,0.00017045,88041.0,88022.0,0.0113675]
[1766930732262,0.02443419,88040.0,88022.0,0.0113675]
[1766930732558,0.02443419,88039.0,88022.0,0.0113675]
[1766930732762,0.02443419,88038.0,88022.0,0.0113675]
[1766930732961,0.02443419,88037.0,88022.0,0.0113675]
[1766930733162,0.00017045,88041.0,88022.0,0.0113675]
[1766930733363,0.0244346,88040.0,88022.0,0.0113675]
[1766930733564,0.0244346,88039.0,88022.0,0.0113675]
[1766930733763,0.0244346,88038.0,88022.0,0.0113675]
[1766930733963,0.0244346,88037.0,88022.0,0.0113675]
[1766930734163,0.00017045,88041.0,88022.0,0.0113675]
[1766930734365,0.02443664,88040.0,88022.0,0.0113675]
[1766930734555,0.02443664,88039.0,88022.0,0.0113675]
[1766930734757,0.02443664,88038.0,88022.0,0.0113675]
[1766930735050,0.02443664,88037.0,88022.0,0.0113675]
[1766930735255,0.00017045,88041.0,88022.0,0.0113675]
[1766930735454,0.02443936,88040.0,88022.0,0.0113675]
[1766930735651,0.02443936,88039.0,88022.0,0.0113675]
[1766930735851,0.02443936,88038.0,88022.0,0.0113675]
[1766930736066,0.02443936,88037.0,88022.0,0.0113675]
[1766930736265,0.00017045,88041.0,88022.0,0.0113675]
[1766930736563,0.02444463,88040.0,88022.0,0.0113675]
[1766930736764,0.02444463,88039.0,88022.0,0.0113675]
[1766930736964,0.00017045,88041.0,88022.0,0.0113675]
[1766930736965,0.02444463,88038.0,88022.0,0.0113675]
[1766930737158,0.02444463,88037.0,88022.0,0.0113675]
[1766930737358,0.02444463,88036.0,88022.0,0.0113675]
[1766930737559,0.00017045,88041.0,88022.0,0.0113675]
[1766930737764,0.02444563,88040.0,88022.0,0.0113675]
[1766930737965,0.02444563,88039.0,88022.0,0.0113675]
[1766930738172,0.02444563,88038.0,88022.0,0.0113675]
[1766930738462,0.02444563,88037.0,88021.0,0.09664]
[1766930738667,0.02444563,88036.0,88021.0,0.09664]
[1766930738869,0.00017045,88041.0,88021.0,0.09664]
[1766930739070,0.02444785,88040.0,88021.0,0.09664]
[1766930739369,0.02444785,88039.0,88021.0,0.09664]
[1766930739569,0.02444785,88038.0,88021.0,0.09664]
[1766930739768,0.02444785,88037.0,88021.0,0.09664]
[1766930740067,0.00017045,88041.0,88021.0,0.09664]
[1766930740068,0.02444785,88036.0,88021.0,0.09664]
[1766930740267,0.00017045,88041.0,88021.0,0.09664]
[1766930740469,0.02444802,88040.0,88021.0,0.09664]
[1766930740669,0.00017045,88041.0,88005.0,0.0113696]
[1766930740670,0.0113663,88032.0,88006.0,0.0113696]
[1766930740856,0.02444802,88031.0,88008.0,0.0113694]
[1766930741463,0.011367,88027.0,88006.0,0.09664]
[1766930741660,0.02444802,88026.0,88008.0,0.00017045]
[1766930741861,0.00017045,88025.0,88008.0,4.5e-07]
[1766930742076,0.03581532,88024.0,88008.0,4.5e-07]
[1766930742259,0.0113673,88024.0,88008.0,4.5e-07]
[1766930742464,0.02497859,88023.0,88008.0,4.5e-07]
[1766930742664,0.0113673,88024.0,88008.0,4.5e-07]
[1766930742969,0.02497883,88023.0,88008.0,4.5e-07]
[1766930743263,0.0113673,88024.0,88008.0,4.5e-07]
[1766930743471,0.02496957,88023.0,88008.0,4.5e-07]
[1766930743671,0.1080077,88022.0,88008.0,4.5e-07]
[1766930743968,0.08189063,88021.0,88008.0,4.5e-07]
[1766930744173,0.02497063,88020.0,88008.0,4.5e-07]
[1766930744864,0.02495861,88019.0,88008.0,4.5e-07]
[1766930745065,0.0113678,88020.0,88008.0,4.5e-07]
[1766930745465,0.0113684,88016.0,88008.0,4.5e-07]
[1766930745666,0.0113684,88016.0,87995.0,0.06964]
[1766930745966,0.0113684,88016.0,87995.0,0.06364]
[1766930746572,0.0113684,88016.0,87997.0,0.00011364]
[1766930746766,0.0113679,88020.0,87997.0,0.00011364]
[1766930746967,0.02494028,88019.0,87997.0,0.00011364]
[1766930747168,0.0113679,88020.0,87997.0,0.00011364]
[1766930747373,0.02493229,88019.0,87997.0,0.00011364]
[1766930747572,0.0113679,88020.0,87997.0,0.00011364]
[1766930747773,0.02493229,88019.0,87997.0,0.00011364]
[1766930748073,0.0113679,88020.0,87997.0,0.00011364]
[1766930748275,0.02492573,88019.0,87997.0,0.00011364]
[1766930748473,0.05692,88021.0,87997.0,0.00011364]
[1766930748774,0.02492573,88020.0,87997.0,0.00011364]
[1766930748969,0.05692,88019.0,88000.0,0.0113704]
[1766930749170,0.05692,88018.0,88002.0,0.01137]
[1766930749367,0.09664,88023.0,88004.0,0.0113698]
[1766930749566,0.00017045,88025.0,88007.0,0.0113695]
[1766930749767,0.05692,88022.0,88007.0,0.0113695]
[1766930750576,0.05692,88022.0,88004.0,0.0113699]
[1766930754778,0.05692,88022.0,87997.0,0.00011364]
[1766930755079,0.05692,88022.0,87998.0,0.11361957]
[1766930755878,0.05692,88022.0,88006.0,0.0113695]
[1766930758577,0.05692,88022.0,88003.0,0.01137]
[1766930760184,0.05692,88022.0,87997.0,0.00011364]
[1766930760578,0.05692,88022.0,87998.0,0.11362022]
[1766930760975,0.05692,88022.0,88000.0,0.0113703]
[1766930762378,0.05692,88022.0,88002.0,0.0113701]
[1766930763272,0.0253031,88021.0,88004.0,0.0113698]
[1766930763473,0.05692,88022.0,88004.0,0.0113698]
[1766930763671,0.0253031,88021.0,88004.0,0.0113698]
[1766930763875,0.05692,88022.0,87997.0,0.00011364]
[1766930764166,0.05692,88022.0,87998.0,0.11362086]
[1766930764674,0.02530751,88021.0,87998.0,0.11362086]
[1766930764873,0.05692,88022.0,87998.0,0.11362086]
[1766930765078,0.02530751,88021.0,87998.0,0.11362086]
[1766930765276,0.05692,88022.0,87998.0,0.11362086]
[1766930765478,0.02531223,88021.0,87998.0,0.11362086]
[1766930765778,0.05692,88022.0,87998.0,0.11362086]
[1766930765981,0.02531223,88021.0,87998.0,0.11362086]
[1766930766182,0.02531654,88020.0,88004.0,0.0113698]
[1766930766383,0.05692,88022.0,88004.0,0.0113698]
[1766930766586,0.02531778,88021.0,88004.0,0.0113698]
[1766930766785,0.02531778,88020.0,88004.0,0.0113698]
[1766930766979,0.05692,88022.0,88001.0,0.05692]
[1766930767177,0.02532319,88021.0,88001.0,0.05692]
[1766930767376,0.02532319,88020.0,88001.0,0.05692]
[1766930767577,0.05692,88022.0,88001.0,0.05692]
[1766930767779,0.02532433,88021.0,88001.0,0.05692]
[1766930767981,0.02532433,88020.0,88001.0,0.05692]
[1766930768186,0.02532433,88019.0,88001.0,0.05692]
[1766930768388,0.05692,88022.0,88001.0,0.05692]
[1766930768685,0.02533228,88021.0,88001.0,0.0682902]
[1766930768885,0.02533228,88020.0,88001.0,0.0682902]
[1766930769082,0.02533228,88019.0,88001.0,0.0682902]
[1766930769285,0.02533228,88018.0,88001.0,0.0682902]
[1766930769586,0.05692,88022.0,88001.0,0.0682902]
[1766930769787,0.02534223,88021.0,88001.0,0.0682902]
[1766930769986,0.02534223,88020.0,88001.0,0.0682902]
[1766930770186,0.02534223,88019.0,88001.0,0.0682902]
[1766930770381,0.02534223,88018.0,88001.0,0.0682902]
[1766930770583,0.02534223,88017.0,88001.0,0.0682902]
[1766930770785,0.02534223,88016.0,88001.0,0.0682902]
[1766930771089,0.05692,88022.0,88001.0,0.0682902]
[1766930771285,0.02536424,88021.0,88001.0,0.0682902]
[1766930771483,0.02536424,88020.0,88001.0,0.0682902]
[1766930771784,0.02536424,88019.0,88001.0,0.0682902]
[1766930771985,0.02536424,88018.0,88001.0,0.0682902]
[1766930772185,0.02536424,88017.0,88001.0,0.0682902]
[1766930772388,0.02536424,88016.0,88001.0,0.0682902]
[1766930772689,0.05692,88022.0,88001.0,0.0682902]
[1766930772876,0.02536573,88021.0,88001.0,0.0682902]
[1766930773080,0.02536573,88020.0,88001.0,0.0682902]
[1766930773281,0.02536573,88019.0,88001.0,0.0682902]
[1766930773476,0.02536573,88018.0,88001.0,0.0682902]
[1766930773686,0.02536573,88017.0,88001.0,0.0682902]
[1766930773890,0.02536573,88016.0,88001.0,0.0682902]
[1766930774086,0.02536573,88015.0,88001.0,0.0682902]
[1766930774289,0.05692,88022.0,88001.0,0.0682902]
[1766930774482,0.02536653,88021.0,88001.0,0.0682902]
[1766930774683,0.02536653,88020.0,88001.0,0.0682902]
[1766930774886,0.02536653,88019.0,88001.0,0.0682902]
[1766930775089,0.02536653,88018.0,88001.0,0.0682902]
[1766930775392,0.02536653,88017.0,88001.0,0.0682902]
[1766930775591,0.05692,88022.0,88001.0,0.0682902]
[1766930775792,0.02536674,88021.0,88001.0,0.0682902]
[1766930775990,0.00017045,88025.0,88001.0,0.05692]
[1766930776292,5e-08,88025.0,88002.0,0.11362345]
[1766930777190,5e-08,88025.0,88011.0,0.0113689]
[1766930777393,5e-08,88025.0,88011.0,0.0682889]
[1766930779293,5e-08,88025.0,88011.0,0.05692]
[1766930790995,5e-08,88025.0,88014.0,0.0113685]
[1766930791800,5e-08,88025.0,88015.0,0.0113684]
[1766930793100,5e-08,88025.0,88012.0,0.0113688]
[1766930795700,5e-08,88025.0,88014.0,0.0113685]
[1766930796803,5e-08,88025.0,88011.0,0.05692]
[1766930797504,5e-08,88025.0,88014.0,0.0113685]
[1766930797800,5e-08,88025.0,88016.0,0.0113683]
[1766930798002,5e-08,88025.0,88018.0,0.0113679]
[1766930798500,5e-08,88025.0,88020.0,0.0113677]
[1766930799897,5e-08,88025.0,88017.0,0.0113681]
[1766930801403,5e-08,88025.0,88014.0,0.0113685]
[1766930803199,5e-08,88025.0,88011.0,0.0682889]
[1766930803607,5e-08,88025.0,88013.0,0.0113686]
[1766930803908,5e-08,88025.0,88015.0,0.0113684]
[1766930805604,5e-08,88025.0,88020.0,0.0113678]
[1766930811510,5e-08,88025.0,88016.0,0.0113682]
[1766930811909,5e-08,88025.0,88018.0,0.011368]
[1766930817118,5e-08,88025.0,88020.0,0.0113677]
[1766930817317,5e-08,88025.0,88011.0,0.05692]
[1766930817515,5e-08,88025.0,88012.0,0.1136086]
[1766930818019,5e-08,88025.0,88021.0,0.0113676]
[1766930818912,5e-08,88025.0,88017.0,0.0113682]
[1766930820623,5e-08,88025.0,88019.0,0.0113678]
[1766930821217,5e-08,88025.0,88015.0,0.0113684]
[1766930821613,5e-08,88025.0,88018.0,0.011368]
[1766930825426,5e-08,88025.0,88020.0,0.0113677]
[1766930827319,5e-08,88025.0,88016.0,0.0113682]
[1766930829624,5e-08,88025.0,88018.0,0.011368]
[1766930830027,5e-08,88025.0,88020.0,0.0113677]
[1766930831025,5e-08,88025.0,88017.0,0.0113682]
[1766930831225,5e-08,88025.0,88019.0,0.0113679]
[1766930831417,5e-08,88025.0,88012.0,0.11360731]
[1766930831818,5e-08,88025.0,88022.0,0.0113675]
[1766930832926,5e-08,88025.0,88019.0,0.0113679]
[1766930833624,5e-08,88025.0,88021.0,0.0113676]
[1766930839528,5e-08,88025.0,88015.0,0.00017045]
[1766930839529,5e-08,88025.0,88018.0,0.011368]
[1766930843735,5e-08,88025.0,88015.0,0.01153885]
[1766930844034,5e-08,88025.0,88016.0,0.1136086]
[1766930844536,5e-08,88025.0,88017.0,0.0113682]
[1766930845428,5e-08,88025.0,88015.0,0.00017045]
[1766930846236,5e-08,88025.0,88016.0,0.11360925]
[1766930846935,5e-08,88025.0,88019.0,0.0113679]
[1766930848536,5e-08,88025.0,88016.0,0.1080083]
[1766930848740,5e-08,88025.0,88018.0,0.011368]
[1766930850940,5e-08,88025.0,88019.0,0.05688]
[1766930918083,5e-08,88025.0,88020.0,0.0113678]
[1766930918989,5e-08,88025.0,88019.0,0.05688]
[1766930926590,5e-08,88025.0,88020.0,0.0113678]
[1766930926793,5e-08,88025.0,88019.0,0.05688]
[1766930928194,5e-08,88025.0,88019.0,0.0682479]
[1766930928494,5e-08,88025.0,88019.0,0.05688]
[1766930928700,5e-08,88025.0,88022.0,0.0113674]
[1766930946921,5e-08,88025.0,88021.0,0.0113676]
[1766930947220,5e-08,88025.0,88019.0,0.05688]
[1766930949021,5e-08,88025.0,88020.0,0.0113678]
[1766930950324,5e-08,88025.0,88019.0,0.05688]
[1766930950523,5e-08,88025.0,88021.0,0.0113676]
[1766930956730,5e-08,88025.0,88020.0,0.0113678]
[1766930962530,5e-08,88025.0,88022.0,0.0113675]
[1766930971239,0.09664003,88043.0,88023.0,0.01777333]
[1766930971439,0.02471953,88042.0,88024.0,0.07465333]
[1766930971738,0.09664003,88043.0,88025.0,0.01777333]
[1766930971739,0.02471953,88041.0,88025.0,0.01777333]
[1766930971940,0.02471953,88040.0,88026.0,0.01777333]
[1766930972134,0.02471953,88039.0,88024.0,0.05688]
[1766930972333,0.02471953,88038.0,88024.0,0.05688]
[1766930972539,0.02471953,88037.0,88024.0,0.05688]
[1766930972742,0.02471953,88036.0,88024.0,0.05688]
[1766930972941,0.00017045,88042.0,88026.0,0.0113669]
[1766930973142,0.03778558,88041.0,88026.0,0.0113669]
[1766930973341,0.0247195,88040.0,88026.0,0.0113669]
[1766930973544,0.0247195,88039.0,88026.0,0.0113669]
[1766930973840,0.00017045,88042.0,88026.0,0.0113669]
[1766930973841,0.0247195,88038.0,88026.0,0.0113669]
[1766930974041,0.0247195,88037.0,88027.0,0.01777312]
[1766930974248,0.00017045,88042.0,88028.0,0.01777312]